[Event "FTX Road to Miami Prelims 2022"]
[Site "Online"]
[Date "2022.07.04"]
[Round "1.1"]
[White "Shankland, Sam"]
[Black "Niemann, Hans Moke"]
[Result "0-1"]
[ECO "C88"]
[WhiteElo "2720"]
[BlackElo "2688"]
[Annotator "TA"]
[PlyCount "88"]
[EventDate "2022.07.10"]
[EventType "tourn"]
[EventCountry "NET"]
[SourceTitle "playchess.com"]
[Source "ChessBase"]
[SourceQuality "1"]
[TimeControl "40/5400+30:1800+30"]

{[%evp 18,88,12,16,24,21,28,14,31,23,24,26,48,38,21,30,58,16,25,18,38,33,54,52,76,79,70,67,59,0,0,0,0,0,0,-30,-29,-30,-48,-33,-29,-16,-26,-97,0,-405,-406,-405,-383,-383,-356,-426,-414,-707,-679,-716,-681,-1148,-1112,-1091,-1018,-916,-609,-10048,-5639,-4133,-1042,-6075,-863,-29978,-29979,-29979,-29980]} 1. e4 {[%emt 1:15:40]} e5 {[%emt 1:15:40]} 2. Nf3 {[%emt 0:00:21]} Nc6 {[%emt 0:00:22]} 3. Bb5 {[%emt 0:00:21]} a6 {[%emt 0:00:30]} 4. Ba4 {[%emt 0:00:22]} Nf6 {[%emt 0:00:21]} 5. O-O {[%emt 0:00:22]} Be7 {[%emt 0:00:33]} 6. Re1 {[%emt 0:00:22]} b5 {[%emt 0:00:22]} 7. Bb3 {[%emt 0:00:21]} O-O {[%emt 0:00:20]} 8. h3 {[%emt 0:00:41]} Bb7 {[%emt 0:00:52]} 9. d3 {[%emt 0:00:26]} d6 {[%emt 0:00:25]} 10. a3 {[%emt 0:00:45]} h6 {[%emt 0:00:58] 10...Qd7 is setting a new trend. C88: Closed Ruy Lopez: Anti-Marshall Systems.} 11. Nc3 {[%emt 0:00:25]} Re8 {[%emt 0:00:45]} 12. Bd2 {[%emt 0:01:46]} Bf8 {[%emt 0:01:31] The position is equal.} 13. Nd5 {[%emt 0:00:54]} Rb8 {[%emt 0:00:48] [#]} 14. c4 $146 {[%emt 0:01:17]} ({Predecessor:} 14. a4 Nd7 15. axb5 axb5 16. Ne3 Nc5 17. Bd5 Ne7 18. Bxb7 Rxb7 19. Qe2 {½-½ (19) Manakov,I (2303)-Zakharov,A (2131) St Petersburg 2000}) 14... bxc4 {[%emt 0:01:11]} 15. Bxc4 {[%emt 0:00:25]} Nxd5 {[%emt 0:00:45]} 16. Bxd5 {[%emt 0:00:24]} (16. exd5 Ne7 $15) 16... Nd4 {[%emt 0:00:21]} 17. Bc4 {[%emt 0:01:29]} Ne6 {[%emt 0:01:08]} 18. b4 {[%emt 0:00:24]} Qd7 {[%emt 0:00:31]} 19. Be3 {[%emt 0:01:06]} Kh7 {[%emt 0:00:37]} 20. Qc2 {[%emt 0:00:51]} g6 {[%emt 0:00:32]} 21. d4 {[%emt 0:01:17]} exd4 {[%emt 0:00:30]} 22. Nxd4 {[%emt 0:00:23]} ({But not} 22. Bxd4 Nxd4 23. Nxd4 c5 $11) 22... Bg7 {[%emt 0:00:21]} 23. Rad1 {[%emt 0:01:02]} (23. Bxe6 $14 fxe6 24. Rac1) 23... Bxe4 $1 $11 {[%emt 0:00:25]} 24. Qxe4 {[%emt 0:00:46]} Nxd4 {[%emt 0:00:22]} 25. Qd3 {[%emt 0:00:57]} Nb5 {[%emt 0:00:22]} 26. Rc1 {[%emt 0:01:56] [#] Hoping for a4.} c6 {[%emt 0:00:49]} 27. Bf4 {[%emt 0:01:09]} Rxe1+ {[%emt 0:01:46]} 28. Rxe1 {[%emt 0:00:22]} Re8 {[%emt 0:00:42]} 29. Rxe8 {[%emt 0:01:21]} Qxe8 {[%emt 0:00:23]} 30. a4 {[%emt 0:00:21] [#]} (30. Qf3 $11) 30... d5 {[%emt 0:00:29]} (30... Qe1+ $1 $17 31. Kh2 (31. Qf1 Qxb4 32. Be3 Qxa4 $17) 31... d5 32. axb5 dxc4 33. Qxc4 axb5 34. Qxf7 Qxf2) 31. Bxb5 $2 {[%emt 0:01:00][%mdl 8192]} (31. Qe2 $11 {and White has nothing to worry.} Qxe2 32. Bxe2) 31... cxb5 $19 {[%emt 0:00:22]} ({Avoid the trap} 31... axb5 $2 32. a5 $19) 32. axb5 $11 {[%emt 0:00:25][%mdl 4096] Endgame KQB-KQB} Qe1+ {[%emt 0:00:57]} 33. Kh2 {[%emt 0:01:49]} Qxb4 {[%emt 0:00:22]} 34. Qf3 {[%emt 0:00:40]} Qxb5 {[%emt 0:00:32]} 35. Bg3 {[%emt 0:00:30]} (35. Bd2 $142 Kg8 36. Qa3) 35... Kg8 $19 {[%emt 0:00:55] aiming for ...a5.} 36. h4 {[%emt 0:00:23]} h5 {[%emt 0:00:22] And now ...a5 would win.} 37. Bf4 {[%emt 0:00:27]} a5 {[%emt 0:00:26][%cal Ba6a5,Ba5a4][%mdl 32]} 38. g4 {[%emt 0:00:22]} hxg4 {[%emt 0:00:40]} 39. Qxg4 {[%emt 0:00:23]} Qc4 {[%emt 0:00:23]} 40. Kg3 {[%emt 0:00:33]} a4 {[%emt 0:00:23] ( -> ...a3)} 41. h5 {[%emt 0:30:36]} Qd3+ {[%emt 0:30:22]} (41... gxh5 $142 42. Qf3 h4+ 43. Kxh4 a3 44. Qxa3 Qxf4+ 45. Kh3 d4) 42. f3 {[%emt 0:00:40]} Qf5 {[%emt 0:00:31]} (42... gxh5 $142 43. Qd7 a3 44. Qe8+ Kh7) 43. Qxf5 {[%emt 0:00:28]} gxf5 {[%emt 0:00:21]} 44. Bc1 {[%emt 0:00:29]} Bf8 {[%emt 0:00:25] Weighted Error Value: White=0.80/Black=0.17 (very precise)} 0-1

[Event "FTX Road to Miami Prelims 2022"]
[Site "Online"]
[Date "2022.07.04"]
[Round "1.2"]
[White "Wei, Yi"]
[Black "Wojtaszek, Radoslaw"]
[Result "1-0"]
[ECO "C88"]
[WhiteElo "2727"]
[BlackElo "2708"]
[Annotator "TA"]
[PlyCount "71"]
[EventDate "2022.07.10"]
[EventType "tourn"]
[EventCountry "NET"]
[SourceTitle "playchess.com"]
[Source "ChessBase"]
[SourceQuality "1"]
[TimeControl "40/5400+30:1800+30"]

{[%evp 25,71,18,18,13,12,12,11,11,11,6,12,0,0,0,5,1,8,0,0,-43,4,5,39,39,72,66,67,75,67,70,73,72,89,89,89,89,88,72,72,75,89,89,456,446,570,448,595,572]} 1. e4 {[%emt 1:15:40]} e5 {[%emt 1:15:40]} 2. Nf3 {[%emt 0:00:24]} Nc6 {[%emt 0:00:22]} 3. Bb5 {[%emt 0:00:24]} a6 {[%emt 0:00:21]} 4. Ba4 {[%emt 0:00:22]} Nf6 {[%emt 0:00:23]} 5. O-O {[%emt 0:00:26]} Be7 {[%emt 0:00:23]} 6. Re1 {[%emt 0:00:28]} b5 {[%emt 0:00:23]} 7. Bb3 {[%emt 0:00:22]} O-O {[%emt 0:00:20]} 8. a4 {[%emt 0:00:24]} Bb7 {[%emt 0:00:25]} 9. d3 {[%emt 0:00:34]} d6 {[%emt 0:00:22]} 10. Nbd2 {[%emt 0:00:27]} Nd7 {[%emt 0:00:33]} 11. c3 {[%emt 0:00:39]} Nc5 {[%emt 0:00:24]} 12. axb5 $1 {[%emt 0:00:28] The main line 12.axb5 scores better than 12.Bc2.} axb5 {[%emt 0:00:31]} 13. Rxa8 {[%emt 0:00:22]} Qxa8 {[%emt 0:00:22]} 14. Bc2 {[%emt 0:00:22] C88: Closed Ruy Lopez: Anti-Marshall Systems.} b4 {[%emt 0:00:23]} 15. d4 {[%emt 0:00:22]} bxc3 {[%emt 0:00:23]} 16. bxc3 {[%emt 0:00:22] The position is equal.} Nd7 {[%emt 0:00:25]} 17. Nf1 {[%emt 0:00:22]} Qa1 {[%emt 0:01:04]} 18. Ne3 {[%emt 0:00:46]} Bf6 {[%emt 0:01:19]} ({Much less strong is} 18... Qxc3 19. Nd5 Qa5 20. Re3 $14) 19. d5 {[%emt 0:00:30]} Ncb8 {[%emt 0:00:47]} 20. Ng4 {[%emt 0:00:31]} Na6 {[%emt 0:03:27] [#]} 21. Nxf6+ $5 $146 {[%emt 0:10:23][%mdl 8] New and interesting.} ({Predecessor:} 21. Ba4 Nac5 22. Bxd7 Nxd7 23. Nxf6+ Nxf6 24. Qc2 Ra8 25. Bg5 Qa4 26. Qb2 Bc8 27. Bxf6 gxf6 {½-½ (33) Campian,C (2424)-Bucsa,I (2378) ICCF email 2021}) 21... Nxf6 {[%emt 0:00:23]} 22. Be3 {[%emt 0:00:27]} Qxd1 {[%emt 0:01:58]} (22... Qxc3 $15 {is superior.} 23. Qd2 Qxd2 24. Nxd2 Ng4) 23. Rxd1 $11 {[%emt 0:00:22]} Nd7 {[%emt 0:00:26]} (23... Ng4 $5 {[%cal Rg4e3]}) 24. Rb1 {[%emt 0:02:39]} Nac5 {[%emt 0:01:31] [#]} 25. Nxe5 $1 {[%emt 0:01:36] White is more active.} dxe5 {[%emt 0:05:14]} 26. Bxc5 {[%emt 0:00:22]} Nxc5 {[%emt 0:00:20]} 27. Rb5 {[%emt 0:00:22]} Ra8 {[%emt 0:01:18][%cal Oc7c6] ...c6! is the strong threat.} 28. h4 {[%emt 0:00:21]} Ra1+ {[%emt 0:02:42]} 29. Kh2 {[%emt 0:00:22]} Rc1 {[%emt 0:00:21][%cal Og8f8]} 30. Rxc5 {[%emt 0:00:22]} Rxc2 {[%emt 0:00:23]} 31. Rxc7 $16 {[%emt 0:00:22] And now d6 would win. KRB-KR} Rb2 {[%emt 0:00:24] [#]} 32. c4 $1 {[%emt 0:00:30][%cal Bc3c4,Bc4c5,Bc5c6,Bc6c7][%mdl 1056] White has strong compensation.} Kf8 {[%emt 0:00:27]} 33. c5 {[%emt 0:00:44]} f5 $2 {[%emt 0:00:55][%mdl 8192]} (33... Ke8 $16 {is tougher.}) 34. c6 $18 {[%emt 0:00:47] White is clearly winning.} Ba6 {[%emt 0:01:58]} 35. Ra7 {[%emt 0:00:21]} Rb6 {[%emt 0:00:54]} 36. c7 {[%emt 0:00:22] Weighted Error Value: White=0.08 (flawless) /Black=0.56} 1-0

[Event "FTX Road to Miami Prelims 2022"]
[Site "Online"]
[Date "2022.07.04"]
[Round "1.3"]
[White "Dominguez Perez, Leinier"]
[Black "Rapport, Richard"]
[Result "1/2-1/2"]
[ECO "B60"]
[WhiteElo "2754"]
[BlackElo "2764"]
[Annotator "TA"]
[PlyCount "97"]
[EventDate "2022.07.10"]
[EventType "tourn"]
[EventCountry "NET"]
[SourceTitle "playchess.com"]
[Source "ChessBase"]
[SourceQuality "1"]
[TimeControl "40/5400+30:1800+30"]

{[%evp 11,97,20,45,36,45,36,40,33,74,58,59,40,106,83,102,102,105,99,105,106,104,107,115,91,111,105,127,63,111,47,54,42,36,29,204,19,37,0,10,14,24,0,0,0,0,0,0,0,52,-70,-71,-55,0,-70,-57,-60,-54,-187,0,0,0,0,0,0,0,0,0,0,0,0,0,0,0,0,8,0,0,0,0,0,0,0,0,0,0,0,0,0]} 1. e4 {[%emt 1:15:40]} c5 {[%emt 1:15:40]} 2. Nf3 {[%emt 0:00:22]} Nc6 {[%emt 0:00:23]} 3. d4 {[%emt 0:00:22]} cxd4 {[%emt 0:00:22]} 4. Nxd4 {[%emt 0:00:20]} Nf6 {[%emt 0:00:22]} 5. Nc3 {[%emt 0:00:22]} d6 {[%emt 0:00:23]} 6. Bg5 {[%emt 0:00:28]} Bd7 {[%emt 0:00:22]} 7. Nxc6 {[%emt 0:00:39] B60: Sicilian: Richter-Rauzer: Unusual Black 6th moves and 6...Bd7 without 7 Qd2.} Bxc6 {[%emt 0:00:30]} 8. Bxf6 {[%emt 0:00:24]} gxf6 {[%emt 0:00:25]} 9. Bb5 {[%emt 0:00:22] [#] White is slightly better.} Rg8 $146 {[%emt 0:01:19]} ({Predecessor:} 9... h5 10. h4 e6 11. O-O Be7 12. Qe2 a6 13. Bxc6+ bxc6 14. g3 Qa5 15. Qf3 Rb8 {0-1 (47) Van Foreest,L (2544)-Lupulescu,C (2659) Reykjavik 2021}) 10. O-O {[%emt 0:00:26]} Qd7 {[%emt 0:00:22]} 11. Qd3 {[%emt 0:00:59]} Bh6 {[%emt 0:00:59]} (11... f5 $14) 12. a4 {[%emt 0:01:45]} a6 {[%emt 0:00:43]} 13. Bxc6 {[%emt 0:01:33]} bxc6 {[%emt 0:00:20]} 14. a5 {[%emt 0:00:21]} Kf8 {[%emt 0:04:36]} 15. Na4 {[%emt 0:00:29]} Ra7 {[%emt 0:01:50]} 16. Nb6 {[%emt 0:00:31]} Qg4 {[%emt 0:00:27][%csl Gg8][%cal Rg4g2] [#]} 17. g3 {[%emt 0:00:21] Active counter play!} Bf4 {[%emt 0:00:49]} 18. Ra3 {[%emt 0:01:20]} h5 {[%emt 0:00:39]} 19. b4 {[%emt 0:03:15]} (19. Rc3 $16) 19... Be5 {[%emt 0:02:22]} (19... h4 $14 {is superior.}) 20. Nc4 {[%emt 0:01:45]} (20. f3 $16 Qh4 21. Rf2) 20... h4 $14 {[%emt 0:00:46]} 21. Nxe5 {[%emt 0:00:52]} (21. Kg2 {with more complications.} hxg3 22. hxg3 Rh8 23. Rh1) 21... fxe5 {[%emt 0:01:17]} 22. Rc3 {[%emt 0:00:57]} Rc7 $2 {[%emt 0:00:50]} (22... Qc8 $11 {and Black is okay.}) 23. Re1 $2 {[%emt 0:00:53]} (23. Qxa6 $18 Qxe4 24. Rc4) 23... Qc8 {[%emt 0:00:44]} 24. Qd2 {[%emt 0:01:53]} Ke8 {[%emt 0:00:27]} 25. Qe2 {[%emt 0:01:03]} Qb7 {[%emt 0:00:45]} 26. Rd1 {[%emt 0:01:03]} hxg3 {[%emt 0:01:01]} (26... Qxb4 $2 27. Rb3 Qb5 28. Qe3 $18) 27. hxg3 {[%emt 0:00:27]} Rh8 {[%emt 0:01:06]} (27... Qxb4 $2 28. Rb3 Qb5 29. Qe3 $18) 28. Kg2 {[%emt 0:01:16]} Rc8 {[%emt 0:01:59]} (28... Qxb4 $2 29. Rb3 Qb5 30. Qf3 $18) 29. Rb3 {[%emt 0:00:35]} Qd7 {[%emt 0:01:00]} (29... f6 $11) 30. Rh1 {[%emt 0:00:31]} (30. Qxa6 $14 Qh3+ 31. Kf3) 30... Rxh1 $15 {[%emt 0:00:22]} 31. Kxh1 {[%emt 0:00:20][%mdl 4096] Endgame KQR-KQR} Qh3+ {[%emt 0:00:30]} 32. Kg1 {[%emt 0:00:21]} Kd7 $1 {[%emt 0:00:20]} 33. Qf3 {[%emt 0:02:12]} (33. Qxa6 Rh8 34. Qb7+ Ke6) 33... Rh8 {[%emt 0:00:28]} 34. c4 {[%emt 0:00:38]} ({White should play} 34. Rd3 $15) 34... Ke6 $2 {[%emt 0:01:13]} ({Black should try} 34... Qh6 $19 {( -> ...Qc1+)} 35. Rc3 Qd2) 35. b5 $11 {[%emt 0:01:05] The position is equal.} cxb5 {[%emt 0:00:20]} 36. cxb5 {[%emt 0:00:21]} axb5 {[%emt 0:00:25]} 37. Rxb5 {[%emt 0:00:35]} Qh2+ {[%emt 0:00:58]} 38. Kf1 {[%emt 0:00:22][%csl Ge4][%cal Rf3f5] [#]} Qh1+ {[%emt 0:00:21]} 39. Ke2 {[%emt 0:00:29][%csl Ge4][%cal Rf3f5]} Qxf3+ {[%emt 0:00:21]} 40. Kxf3 {[%emt 0:00:21] KR-KR} Rh1 {[%emt 0:00:29]} ({But not} 40... Ra8 41. Ke3 $14) 41. Rb7 {[%emt 0:30:49]} Ra1 {[%emt 0:30:26]} 42. Ra7 {[%emt 0:00:22]} Kf6 {[%emt 0:00:22]} 43. Ra6 {[%emt 0:01:19]} e6 {[%emt 0:00:36]} 44. Rxd6 {[%emt 0:00:29] aiming for Ra6.} Rxa5 {[%emt 0:00:22]} 45. Ke3 {[%emt 0:00:24]} Ra3+ {[%emt 0:00:22]} 46. Ke2 {[%emt 0:00:22]} Ra5 {[%emt 0:00:21]} 47. Ke3 {[%emt 0:00:22]} Ra3+ {[%emt 0:00:21]} 48. Ke2 {[%emt 0:00:21]} Ra5 {[%emt 0:00:20]} 49. Ke3 {[%emt 0:00:21] Weighted Error Value: White=0.27 (precise) /Black=0.22 (precise)} 1/2-1/2

[Event "FTX Road to Miami Prelims 2022"]
[Site "Online"]
[Date "2022.07.04"]
[Round "1.4"]
[White "Duda, Jan-Krzysztof"]
[Black "Radjabov, Teimour"]
[Result "1-0"]
[ECO "C66"]
[WhiteElo "2750"]
[BlackElo "2738"]
[Annotator "TA"]
[PlyCount "111"]
[EventDate "2022.07.10"]
[EventType "tourn"]
[EventCountry "NET"]
[SourceTitle "playchess.com"]
[Source "ChessBase"]
[SourceQuality "1"]
[TimeControl "40/5400+30:1800+30"]

{[%evp 15,111,24,28,24,41,22,28,11,15,14,21,22,56,52,39,43,48,41,47,42,57,50,83,14,94,18,20,24,26,30,26,38,30,28,105,105,160,91,92,99,97,80,76,76,98,78,95,70,91,83,133,148,160,156,152,139,989,1059,1054,1043,1043,941,1908,1779,1707,1641,1121,718,714,709,706,768,2428,1644,3381,3060,5493,1600,29962,29962,12850,5688,29948,29954,5085,29956,29976,29977,29977,29978,29978,29979,29978,29979,29979,29980,29980,29981]} 1. e4 {[%emt 1:15:40]} e5 {[%emt 1:15:40]} 2. Nf3 {[%emt 0:00:22]} Nc6 {[%emt 0:00:21]} 3. Bb5 {[%emt 0:00:21]} Nf6 {[%emt 0:00:22]} 4. d3 {[%emt 0:00:21]} d6 {[%emt 0:00:21]} 5. O-O {[%emt 0:00:27]} Bd7 {[%emt 0:00:21]} 6. c3 {[%emt 0:00:52]} g6 {[%emt 0:00:22]} 7. Re1 {[%emt 0:00:26]} Bg7 {[%emt 0:00:22]} 8. Nbd2 {[%emt 0:00:23][%cal Bb1d2,Bd2f1,Bf1g3][%mdl 32]} O-O {[%emt 0:00:22]} 9. a4 {[%emt 0:00:21][%cal Ba2a4,Ba4a5,Ba5a6][%mdl 32] C66: Ruy Lopez: Steinitz Defence.} Re8 {[%emt 0:00:26]} 10. Nf1 {[%emt 0:00:23]} h6 {[%emt 0:00:40]} 11. Ng3 {[%emt 0:00:29] [#] White has an edge.} d5 $146 {[%emt 0:00:34]} ({Predecessor:} 11... a6 12. Bc4 Be6 13. Bxe6 Rxe6 14. d4 d5 15. c4 dxe4 16. d5 Rd6 17. Nxe4 Nxe4 18. Rxe4 {0-1 (38) Msellek,I (2384)-Nezad,H (2357) Dubai 2021}) 12. a5 {[%emt 0:01:06]} a6 {[%emt 0:00:44]} 13. exd5 {[%emt 0:01:31]} (13. Ba4 {is more complex.} dxe4 14. dxe4 Qe7 15. Be3) 13... axb5 {[%emt 0:05:52]} 14. dxc6 {[%emt 0:00:24]} Bxc6 {[%emt 0:00:21]} 15. Nxe5 {[%emt 0:00:21]} Bd5 {[%emt 0:00:21]} 16. d4 {[%emt 0:00:56]} b6 {[%emt 0:00:59]} 17. a6 {[%emt 0:06:53]} Qc8 {[%emt 0:00:52]} 18. h4 {[%emt 0:00:21]} h5 {[%emt 0:00:36]} 19. Bg5 {[%emt 0:00:36]} (19. f4 $16) 19... Nh7 {[%emt 0:01:47]} (19... Rxa6 $11 {remains equal.} 20. Rxa6 Qxa6) 20. Nd3 {[%emt 0:01:07]} ({Don't do} 20. a7 Qb7 $14) (20. f4 $16) 20... Rxe1+ $11 {[%emt 0:03:34]} 21. Qxe1 {[%emt 0:00:20] Black must now prevent Nb4.} Nxg5 {[%emt 0:00:23]} (21... Rxa6 {is interesting.} 22. Rxa6 Qxa6 23. Qe8+ Bf8) 22. hxg5 {[%emt 0:00:20] [#] Threatens to win with Nb4.} Rxa6 {[%emt 0:00:27]} 23. Rxa6 {[%emt 0:00:48]} Qxa6 {[%emt 0:00:22]} 24. Qe8+ {[%emt 0:03:08]} Kh7 {[%emt 0:00:26]} (24... Bf8 $1 $11 {keeps the balance.}) 25. Nf4 $36 {[%emt 0:00:21][%mdl 2048] Black is under strong pressure.} Qa8 {[%emt 0:01:40] [#]} ({Black should play} 25... Qa2) 26. Qxb5 {[%emt 0:00:35]} (26. Qd7 $142 $1 c6 27. Nxd5 cxd5 28. Qxb5 (28. Qxf7 Qa1+ 29. Kh2 Qxb2 $16)) 26... Bc6 {[%emt 0:00:31]} 27. Qc4 {[%emt 0:00:21]} Qe8 {[%emt 0:00:28]} 28. Nf1 {[%emt 0:02:27]} b5 {[%emt 0:01:32]} 29. Qd3 {[%emt 0:01:09]} Qd8 {[%emt 0:01:47]} 30. d5 {[%emt 0:00:28]} Qxg5 {[%emt 0:00:53]} 31. dxc6 {[%emt 0:00:22]} Qxf4 {[%emt 0:00:21]} 32. Qxb5 {[%emt 0:00:20][%mdl 4096] Endgame KQB-KQN} h4 {[%emt 0:00:28]} (32... Qe4 $142) 33. Ne3 {[%emt 0:00:28]} Be5 {[%emt 0:01:46]} 34. Kf1 {[%emt 0:00:31] Active counter play!} Kg7 {[%emt 0:00:46]} 35. Qc4 {[%emt 0:01:23]} f5 $2 {[%emt 0:00:46][%mdl 8192] A mistake that costs the game.} (35... Qh6 $16) 36. Qxf4 $18 {[%emt 0:01:03]} Bxf4 {[%emt 0:00:22] KB-KN} 37. Nd5 {[%emt 0:00:20]} Bd6 {[%emt 0:00:26]} 38. b4 {[%emt 0:00:38]} Kf7 {[%emt 0:00:28]} 39. f4 {[%emt 0:00:23]} Ke6 {[%emt 0:00:57]} 40. c4 {[%emt 0:00:21]} Bf8 {[%emt 0:00:29]} 41. Nxc7+ {[%emt 0:31:20]} Kd6 {[%emt 0:30:21]} 42. Nd5 {[%emt 0:00:21] And now b5 would win.} Kxc6 {[%emt 0:00:21]} 43. Kg1 {[%emt 0:00:26] aiming for Kh2.} Kd6 {[%emt 0:00:25]} 44. Kh2 {[%emt 0:00:23]} Bh6 {[%emt 0:00:21]} 45. Kh3 {[%emt 0:01:04]} g5 {[%emt 0:00:22]} 46. b5 {[%emt 0:00:27][%cal Bb4b5,Bb5b6,Bb6b7][%mdl 32] Hoping for b6.} gxf4 {[%emt 0:00:52]} 47. Kxh4 {[%emt 0:00:36]} Kc5 {[%emt 0:00:22]} 48. b6 {[%emt 0:00:23] Intending b7 and mate.} Bf8 {[%emt 0:00:22]} 49. b7 {[%emt 0:00:34]} Bd6 {[%emt 0:00:21]} 50. Kg5 $1 {[%emt 0:00:21][%csl LRf4,LRf5]} Kxc4 {[%emt 0:00:37] White mates.} 51. Nxf4 {[%emt 0:00:23]} Kc5 {[%emt 0:00:27]} 52. Kxf5 {[%emt 0:00:23]} Kc6 {[%emt 0:00:21]} 53. g4 {[%emt 0:00:23][%cal Bg2g4,Bg4g5,Bg5g6][%mdl 32]} Kxb7 {[%emt 0:00:26]} 54. g5 {[%emt 0:00:23]} Kc6 {[%emt 0:00:32]} 55. g6 {[%emt 0:00:22]} Bf8 {[%emt 0:00:46]} 56. Ne6 {[%emt 0:00:30] Weighted Error Value: White=0.13 (very precise) /Black=0.43} 1-0

[Event "FTX Road to Miami Prelims 2022"]
[Site "Online"]
[Date "2022.07.04"]
[Round "1.5"]
[White "Mamedyarov, Shakhriyar"]
[Black "Aronian, Levon"]
[Result "1-0"]
[ECO "D27"]
[WhiteElo "2759"]
[BlackElo "2775"]
[Annotator "TA"]
[PlyCount "93"]
[EventDate "2022.07.10"]
[EventType "tourn"]
[EventCountry "NET"]
[SourceTitle "playchess.com"]
[Source "ChessBase"]
[SourceQuality "1"]
[TimeControl "40/5400+30:1800+30"]

{[%evp 12,93,29,38,32,32,33,32,41,33,44,19,21,22,23,10,20,0,11,12,12,4,16,0,0,0,4,12,49,39,40,35,38,19,29,22,31,41,36,37,55,22,62,60,63,58,66,62,64,31,64,60,85,29,31,18,76,89,66,86,114,69,196,189,191,199,260,250,522,504,624,596,625,608,531,454,400,400,1186,1185,1586,939,828,827]} 1. d4 {[%emt 1:15:40]} d5 {[%emt 1:15:40]} 2. c4 {[%emt 0:00:23]} dxc4 {[%emt 0:00:21]} 3. Nf3 {[%emt 0:00:24]} Nf6 {[%emt 0:00:21]} 4. e3 {[%emt 0:00:24]} e6 {[%emt 0:00:22]} 5. Bxc4 {[%emt 0:00:21]} a6 {[%emt 0:00:21]} 6. O-O {[%emt 0:00:22]} c5 {[%emt 0:00:21]} 7. b3 {[%emt 0:00:29]} b6 {[%emt 0:00:21] D27: Queen's Gambit Accepted: Classical main line: 7 e4!? and 7 a4.} 8. Ba3 {[%emt 0:01:05]} Nbd7 {[%emt 0:00:22]} 9. d5 {[%emt 0:00:22]} exd5 {[%emt 0:00:21] White is slightly better.} 10. Bxd5 {[%emt 0:00:20]} Rb8 {[%emt 0:00:21] [#]} 11. e4 $146 {[%emt 0:00:49]} ({Predecessor:} 11. Bb2 Be7 12. Nc3 O-O 13. Qc2 b5 14. Rfd1 Qc7 15. a4 h6 16. axb5 axb5 17. Qe2 {0-1 (34) Praggnanandhaa,R (2612)-Carlsen,M (2865) Wijk aan Zee 2022}) 11... Be7 {[%emt 0:00:32]} 12. Nc3 {[%emt 0:00:27][%cal Od5f7]} O-O {[%emt 0:00:22]} 13. Bb2 {[%emt 0:00:35]} b5 {[%emt 0:00:24]} 14. Qc2 {[%emt 0:01:46]} b4 {[%emt 0:02:30]} 15. Ne2 {[%emt 0:01:09]} Nxd5 {[%emt 0:01:09]} 16. exd5 {[%emt 0:00:20]} Bf6 {[%emt 0:00:21]} 17. Rfd1 {[%emt 0:01:46]} Re8 {[%emt 0:02:07]} 18. Rac1 {[%emt 0:00:28]} Bxb2 {[%emt 0:01:14]} 19. Qxb2 {[%emt 0:00:20]} Qf6 {[%emt 0:00:21]} 20. Qxf6 {[%emt 0:01:04]} Nxf6 {[%emt 0:00:20]} 21. Ng3 {[%emt 0:00:30]} Rb5 {[%emt 0:00:24]} 22. h3 {[%emt 0:02:47]} (22. Nd2 $5 {[%cal Rd2c4]}) 22... Kf8 {[%emt 0:00:52]} 23. d6 {[%emt 0:00:36]} Nd7 {[%emt 0:02:55]} 24. Nd2 {[%emt 0:01:10]} Re6 {[%emt 0:01:42]} 25. Nc4 {[%emt 0:00:45]} g6 {[%emt 0:00:26]} 26. Nf1 {[%emt 0:00:43]} Ke8 {[%emt 0:02:07]} 27. f3 {[%emt 0:00:53]} Kd8 {[%emt 0:00:57]} 28. Kf2 {[%emt 0:00:35]} Bb7 {[%emt 0:01:11]} 29. Nfe3 {[%emt 0:00:58]} Bc6 {[%emt 0:00:24]} 30. Re1 {[%emt 0:01:00] White is more active.} h5 {[%emt 0:00:43]} 31. h4 {[%emt 0:00:47]} Rb8 {[%emt 0:00:29]} 32. Nf1 {[%emt 0:00:57]} (32. Na5 $16 Ba8 33. Rcd1) 32... Bd5 $11 {[%emt 0:00:48] [#] ...Bxc4 is the strong threat.} 33. Nfd2 $36 {[%emt 0:00:57][%mdl 2048] White is pushing.} Rc8 {[%emt 0:00:41]} (33... Kc8 $11 {keeps the balance.}) 34. Rxe6 $16 {[%emt 0:00:52]} (34. g4 {is more complex.} hxg4 35. fxg4 Ke8 36. Rxe6+ Bxe6 37. Re1) 34... Bxe6 {[%emt 0:00:23]} 35. Na5 {[%emt 0:00:29]} Bd5 {[%emt 0:01:11]} 36. Re1 {[%emt 0:01:08]} Be6 {[%emt 0:01:03] This costs Black the game.} (36... Rb8 $1 $14) 37. Ne4 $18 {[%emt 0:00:34]} Ke8 {[%emt 0:02:48]} 38. Ng5 {[%emt 0:00:24] Pair of Knights!} Nf8 {[%emt 0:00:21]} (38... Nb6 $142 39. Nxe6 fxe6) 39. Nc4 {[%emt 0:00:21]} Rc6 $2 {[%emt 0:00:45]} (39... Rb8 40. Ne5 a5 41. Ngxf7 Bxf7) 40. g4 {[%emt 0:00:39]} a5 {[%emt 0:01:07]} 41. gxh5 {[%emt 0:30:25]} gxh5 {[%emt 0:30:20]} 42. f4 {[%emt 0:00:21]} Kd7 {[%emt 0:00:37] [#]} 43. Nxf7 $1 {[%emt 0:01:20][%mdl 512] Black must now prevent Nfe5+.} Ra6 {[%emt 0:01:05]} (43... Kc8 44. Nfe5) 44. f5 {[%emt 0:01:05] Inhibits Ng6.} Bxf5 {[%emt 0:00:47]} (44... Bxc4 $142 45. bxc4 Ra8 46. Re7+ Kc6 47. Rc7+ Kb6) 45. Re7+ {[%emt 0:00:23] White is clearly winning.} Kc6 {[%emt 0:00:22]} 46. Nfe5+ {[%emt 0:00:25]} Kd5 {[%emt 0:00:46]} 47. Rf7 {[%emt 0:00:24][%csl LRf5,LRf8] Weighted Error Value: White=0.10 (very precise) /Black=0.23 (precise)} 1-0